Cogmind - Beta 13 @@@ ROGUE MODE // 2024.03.28 @ 07:07:22 Player: H3-RMN Result: Destroyed by S-43 Plague with Heavy Machine Gun Performance ------------- Evolutions (7) 3500 Regions Visited (24) 4800 Robots Destroyed (310) 1550 Value Destroyed (15860) 15860 Prototype IDs (80) 1600 Alien Tech Used (0) 0 Bonus (12885) 12885 TOTAL SCORE: 40195 Bonus ------- Triggered High Security 500 High Alert Combat Kills 5508 Follower Combat Kills 4737 Entered Garrisons 200 Network Hubs Disabled 200 Aligned with FarCom 300 Met Imprinter 300 Was Imprinted 300 Acquired ECA 300 Met Warlord at Base 500 MAIN.C Attacked Warlord 500 Warlord Defense Kills 414 Met R17 at Cetus 500 Friendly Fire -1374 Cogmind --------- Core Integrity 0/1300 Matter 300/300 Energy 98/100 System Corruption 30% Temperature Cool (0) Movement Core (150) Ox2 Location -3/Armory Parts ------- > --- POWER (2) -------- (None) > --- PROPULSION (5) --- (None) > --- UTILITY (10) ----- Graphene Brace > --- WEAPON (4) ------- Enhanced Force Lance > --- INVENTORY (5) ---- Vortex Cannon (26) Vortex Cannon (26) Improved Plasma Cutter Enhanced Force Lance Peak State ------------ > --- POWER ------------ Compact Particle Reactor Quantum Reactor > --- PROPULSION ------- Heavy Siege Treads Biometal Medium Treads Biometal Heavy Treads > --- UTILITY ---------- Advanced Cooling System Large Storage Unit Experimental Targeting Computer Experimental Target Analyzer Armor Integrity Analyzer Improved Weapon Cycler Centrium Medium Armor Plating Centrium Medium Armor Plating Thermal Barrier Experimental EM Disruption Field > --- WEAPON ----------- Enhanced Quantum Rifle Enhanced Quantum Rifle Enhanced Quantum Rifle Enhanced Coil Gun > --- INVENTORY -------- Vortex Chain Reactor Armored Heavy Treads Biometal Heavy Treads Centrium Medium Armor Plating Graphene Brace Authchip [Propulsion] Vortex Cannon Vortex Cannon Enhanced Nova Cannon Vortex Catalyst Activator Improved Plasma Cutter [Rating: 173] Favorites ----------- Power Neutrino Core Engine Improved Ion Engine Power Core Neutrino Core Reactor Quantum Reactor Propulsion Armored Wheel Treads Improved Treads Leg Experimental Myomer Leg Wheel Armored Wheel Hover Unit Cooled Antigrav System Flight Unit Cesium-ion Thruster Utility Large Storage Unit Device Advanced Cooling System Storage Large Storage Unit Processor Armor Integrity Analyzer Hackware System Shield Protection Centrium Medium Armor Plating Weapon Cooled Particle Cannon Energy Gun Advanced Variable Charge Gun Energy Cannon Cooled Particle Cannon Ballistic Gun KE Penetrator Ballistic Cannon Flak Cannon Launcher Gamma Bomb Array Special Weapon Improved Plasma Cutter Piercing Weapon Enhanced Force Lance Build | -11 -10 -10 -10 -9 -8 -8 -8 -7 -7 -7 -6 -6 -5 -5 -5 -5 -4 -4 -4 -4 -4 -4 -3 -3 ------- Run | Yrd Mat Min Exi Min Mat Gar Mat Fac Low Zio Pro Fac Fac Upp Upp War Pro Fac Ext Cet Arc Hub Res Arm Slots Evolved 14 | . . . . . 4 . . 2 . . . 2 2 . . . . 2 . . . . 2 . Power 1 | . . . . . . . . . . . . . 1 . . . . . . . . . . . Propulsion 3 | . . . . . 1 . . . . . . 1 . . . . . 1 . . . . . . Utility 8 | . . . . . 1 . . 2 . . . 1 1 . . . . 1 . . . . 2 . Weapon 2 | . . . . . 2 . . . . . . . . . . . . . . . . . . . Parts Attached 315 | 7 6 1 2 4 26 19 7 5 . 6 4 1 17 9 18 29 3 11 30 20 2 12 16 60 Power 31 | 1 . . 1 . 2 3 . . . . 1 . 1 . 3 2 . 1 3 4 . 2 2 5 Engine 5 | 1 . . 1 . 2 1 . . . . . . . . . . . . . . . . . . Core 7 | . . . . . . 2 . . . . 1 . 1 . 2 . . 1 . . . . . . Reactor 19 | . . . . . . . . . . . . . . . 1 2 . . 3 4 . 2 2 5 Propulsion 68 | 3 1 . 1 1 4 4 3 . . 1 . . 8 1 3 8 . 2 6 3 2 . 6 11 Treads 39 | 1 . . 1 . 1 1 3 . . . . . 6 . . 1 . . 5 3 2 . 6 9 Leg 12 | . . . . . . . . . . . . . 1 . 3 5 . 2 1 . . . . . Wheel 13 | 2 1 . . 1 3 3 . . . 1 . . 1 1 . . . . . . . . . . Hover 1 | . . . . . . . . . . . . . . . . 1 . . . . . . . . Flight 3 | . . . . . . . . . . . . . . . . 1 . . . . . . . 2 Utility 106 | 1 2 1 . 1 5 8 1 1 . . 3 1 6 3 5 11 3 6 11 3 . 6 3 25 Device 61 | . 2 1 . . 2 5 1 . . . 3 1 2 1 2 8 2 3 5 1 . 5 3 14 Storage 5 | 1 . . . . 1 . . . . . . . 1 . . 1 . . 1 . . . . . Processor 4 | . . . . . . . . . . . . . . . 1 1 . . 1 . . 1 . . Hackware 4 | . . . . . . . . . . . . . . . . . . 1 . . . . . 3 Protection 32 | . . . . 1 2 3 . 1 . . . . 3 2 2 1 1 2 4 2 . . . 8 Artifact . | . . . . . . . . . . . . . . . . . . . . . . . . . Weapon 110 | 2 3 . . 2 15 4 3 4 . 5 . . 2 5 7 8 . 2 10 10 . 4 5 19 Energy Gun 41 | 1 . . . 1 3 1 . . . 3 . . . 1 1 3 . . 6 6 . 2 3 10 Energy Cannon 32 | . 3 . . . 4 . 3 4 . 1 . . 1 3 3 5 . 2 2 . . . . 1 Ballistic Gun 23 | 1 . . . 1 5 2 . . . . . . 1 1 1 . . . . 4 . 1 2 4 Ballistic Cannon 2 | . . . . . 2 . . . . . . . . . . . . . . . . . . . Launcher 8 | . . . . . 1 1 . . . 1 . . . . 2 . . . . . . . . 3 Special Weapon 3 | . . . . . . . . . . . . . . . . . . . 2 . . 1 . . Impact Weapon . | . . . . . . . . . . . . . . . . . . . . . . . . . Slashing Weapon . | . . . . . . . . . . . . . . . . . . . . . . . . . Piercing Weapon 1 | . . . . . . . . . . . . . . . . . . . . . . . . 1 Special Melee Weapon . | . . . . . . . . . . . . . . . . . . . . . . . . . Unidentified Prototypes 35 | . . . . . 4 . . 1 . 2 . . 1 2 . 8 . 2 6 4 . 2 1 2 Corrupted Parts 3 | . . . . . . . . . . . . . . . . . . 1 . . . 2 . . System Corruption 11 | . . . . . . . . . . . . . . . . . . 4 . . . 7 . . Parts Lost 80 | . . . 3 . 1 3 . . . . 2 1 4 1 16 . . . 4 8 . 2 6 29 Power 10 | . . . . . . . . . . . 1 . . . 3 . . . . 1 . . 1 4 Propulsion 23 | . . . 1 . . 2 . . . . . 1 1 1 4 . . . . 3 . . 1 9 Utility 27 | . . . 1 . . 1 . . . . 1 . 2 . 5 . . . 3 1 . 1 1 11 Weapon 20 | . . . 1 . 1 . . . . . . . 1 . 4 . . . 1 3 . 1 3 5 Highest Loss Streak 14 | . . . 3 . 1 1 . . . . 2 1 2 1 11 . . . 3 3 . 1 3 14 To Critical Strikes 2 | . . . 1 . . . . . . . . 1 . . . . . . . . . . . . Average Slot Usage (%) 86 | . 94 100 98 60 96 98 100 91 92 66 61 57 69 97 83 96 99 97 89 84 88 88 86 79 Engine 1 | . 14 14 13 . 8 7 . . . . . . . . . . . . . . . . . . Core 3 | . . . . . . 1 9 7 7 7 7 6 10 11 6 8 . 2 2 . . . . . Reactor 3 | . . . . . . . . . . . . . . . 1 2 11 7 7 9 10 10 8 7 Treads 8 | . 14 14 14 . 8 8 9 7 7 7 7 6 16 11 1 . . . 9 12 14 15 13 12 Leg 4 | . . . . . . . . . . . . . . . 12 20 23 24 9 . . . . . Wheel 6 | . 14 14 14 28 18 17 18 15 15 8 7 3 . 10 3 . . . . . . . . . Device 17 | . 10 14 14 . 1 11 18 15 15 15 15 20 20 24 16 22 24 26 17 21 21 19 22 16 Storage 6 | . 14 14 13 . 8 9 9 7 7 7 7 6 5 5 5 5 5 5 5 5 5 5 4 3 Processor 4 | . . . . . . . . . . . . . . . 2 5 5 5 7 10 10 11 14 12 Protection 6 | . . . . 12 15 6 . 6 7 7 7 6 8 7 6 3 3 4 7 5 5 5 4 7 Energy Gun 6 | . . . . 5 7 1 2 . . 5 7 6 4 4 2 4 5 5 15 14 15 14 14 10 Energy Cannon 9 | . 22 28 27 . 9 25 24 29 30 5 . . . 10 13 11 11 10 4 . . . . 1 Ballistic Gun 3 | . 3 . . 14 13 8 9 . . . . . . 5 4 5 5 4 . 3 5 4 1 3 Naked Turns . | . . . . . . . . . . . . . . . . . . . . . . . . . Heaviest Build 117 | 14 17 17 17 5 41 45 50 74 74 74 69 68 93 88 90 92 95 96 102 98 86 95 97 117 Greatest Support 190 | 26 16 12 20 24 24 28 28 28 28 28 28 28 89 24 45 100 100 128 168 173 188 188 190 180 Greatest Overweight (x) 7 | . 1 1 1 . 1 3 2 2 2 2 2 2 6 7 7 2 . . 1 1 . . . 2 Average Overweight (x) . | . . 1 . . . 1 1 1 2 1 2 2 . 3 1 . . . . . . . . . Largest Inventory Capacity 15 | 8 8 8 8 5 10 10 10 10 10 10 10 10 15 15 15 15 15 15 15 15 15 15 15 15 Average Capacity 12 | 7 8 8 7 5 9 10 10 10 10 10 10 10 14 15 15 15 15 15 15 15 15 15 15 13 Most Carried 15 | 4 8 8 8 4 10 10 10 10 10 10 10 10 15 15 15 15 15 15 15 15 15 15 15 15 Average Carried 12 | 2 6 8 7 2 8 9 10 9 9 9 9 8 13 13 12 14 15 14 14 14 15 14 14 13 Final Capacity 15 | 8 8 8 5 5 10 10 10 10 10 10 10 10 15 15 15 15 15 15 15 15 15 15 15 5 Final Carried 15 | 4 8 8 5 3 10 10 10 10 10 10 9 10 14 15 15 15 15 15 15 15 15 15 15 4 Class Distribution -------------------- 31% | Tank 22% | Scavenger-Tank 15% | Scavenger-Gunner 8% | Mutant 6% | Messiah-Gunner 5% | Gunner 3% | Scavenger-Skirmisher Dominant Class ---------------- Mutant | -10/Materials Mutant | -10/Mines Mutant | -10/Exiles Mutant | -9/Mines Tank | -8/Materials Tank | -8/Garrison Gunner | -8/Materials Tank | -7/Factory Tank | -7/Lower Caves Tank | -7/Zion Tank | -6/Proximity Caves Tank | -6/Factory Scavenger-Tank | -5/Factory Scavenger-Tank | -5/Upper Caves Scavenger-Tank | -5/Upper Caves Scavenger-Tank | -5/Warlord Scavenger-Tank | -4/Proximity Caves Scavenger-Tank | -4/Factory Messiah-Gunner | -4/Extension Scavenger-Gunner | -4/Cetus Scavenger-Tank | -4/Archives Scavenger-Gunner | -4/Hub_04(d) Scavenger-Gunner | -3/Research Scavenger-Gunner | -3/Armory Resources | -11 -10 -10 -10 -9 -8 -8 -8 -7 -7 -7 -6 -6 -5 -5 -5 -5 -4 -4 -4 -4 -4 -4 -3 -3 ----------- Run | Yrd Mat Min Exi Min Mat Gar Mat Fac Low Zio Pro Fac Fac Upp Upp War Pro Fac Ext Cet Arc Hub Res Arm Matter Collected 6088 | 187 159 30 20 13 563 532 153 71 . 43 52 15 173 135 430 838 68 173 345 327 81 343 239 1098 Remotely . | . . . . . . . . . . . . . . . . . . . . . . . . . Salvage Created 16593 | 43 237 87 22 . 963 1163 599 525 . . 310 52 645 214 906 183 289 257 2283 1241 413 914 1588 3659 Parts 745 | 3 10 3 8 . 59 79 38 24 . . 12 3 18 10 27 8 12 7 90 61 11 22 70 170 Haulers Intercepted 12 | . . . . . 3 . 1 2 . . . . . . . . . . 3 . . 2 1 . Recyclers Shooed 4 | . . . . . . . 1 . . . . 1 . . . . . . 2 . . . . . Parts Field Recycled . | . . . . . . . . . . . . . . . . . . . . . . . . . Retrieved Matter . | . . . . . . . . . . . . . . . . . . . . . . . . . Parts Self-Destructed 59 | . . . . . . . . . . . 19 . . 10 18 . 12 . . . . . . . Prevented 2 | . . . . . . . . . . . 2 . . . . . . . . . . . . . Kills | -11 -10 -10 -10 -9 -8 -8 -8 -7 -7 -7 -6 -6 -5 -5 -5 -5 -4 -4 -4 -4 -4 -4 -3 -3 ------- Run | Yrd Mat Min Exi Min Mat Gar Mat Fac Low Zio Pro Fac Fac Upp Upp War Pro Fac Ext Cet Arc Hub Res Arm Combat Hostiles Destroyed 264 | . 4 3 . . 19 29 9 8 . . 8 1 8 4 27 3 6 4 23 17 4 8 22 57 Melee 1 | . . . . . . . . . . . . . . . . . . . . . . . . 1 Guns 169 | . 1 . . . 10 9 5 . . . 8 1 7 1 6 2 3 . 22 17 4 8 21 44 Cannons 65 | . 3 1 . . 8 17 4 8 . . . . . 2 9 1 3 4 1 . . . . 4 AOE 19 | . . 2 . . 1 3 . . . . . . . . 10 . . . . . . . . 3 Classes Destroyed 24 | 1 3 . . . 6 1 2 1 . . 1 . 2 . 1 2 1 1 2 . . . . . Worker 4 | . . . . . . . 1 . . . . . . . . . . . 1 . . . 2 . Builder 3 | . . . . . 2 . 1 . . . . . . . . . . . . . . . . . Tunneler 2 | 2 . . . . . . . . . . . . . . . . . . . . . . . . Hauler 12 | . . . . . 3 . 1 2 . . . . . . . . . . 3 . . 2 1 . Recycler 4 | . . . . . 1 . . . . . . . 1 . . . . . 1 . . 1 . . Minesweeper 1 | . . . . . . . . . . . 1 . . . . . . . . . . . . . Mechanic 4 | . 1 . . . . . . . . . . . . . . . . . 2 . . . . 1 Operator 7 | . 1 . . . 2 . 2 . . . . . . . . . . . . . 1 . . 1 Drone 2 | . . . . . . . . . . . . . . . . . 2 . . . . . . . Watcher 6 | . . . . . 2 . . . . . . . . . . . . . . 2 . 1 . 1 Swarmer 61 | . . . . . 9 16 . . . . 6 . . . 8 . . 1 3 . . . 4 14 Saboteur 1 | . . . . . . . . . . . . . . . 1 . . . . . . . . . Grunt 81 | . 4 3 . . 6 4 4 6 . . 1 . 1 . 12 1 . 1 10 4 . 5 7 12 Brawler 8 | . . . . . . . 1 1 . . . . . . 4 . . . 1 . . . 1 . Duelist 5 | . . . . . . . . . . . . . 1 . . . . . 2 . . . . 2 Protector 4 | . . . . . . . . . . . . . . . . 1 . . . . . . 1 2 Sentry 36 | . . . . . 4 8 4 . . . 1 . 2 . 2 . . . 4 . 4 . 3 4 Demolisher 4 | . . . . . . . . . . . . . . . . . . . 1 . . . . 3 Specialist 5 | . . . . . . . . . . . . . . . . . . . 1 . . . . 4 Hunter 15 | . . . . . . 1 . . . . . 1 . 2 . . 2 . 1 4 . . . 4 Programmer 28 | . . . . . . . . 1 . . . . 3 2 . . 2 1 . 1 . 2 6 10 Heavy 2 | . . . . . . . . . . . . . 1 . . . . . . . . . . 1 Behemoth 2 | . . . . . . . . . . . . . . . . . . 1 . . . . . 1 Cetus Guard 8 | . . . . . . . . . . . . . . . . . . . . 8 . . . . Lightning 1 | . . . . . . . . . . . . . . . . . . . . . . 1 . . Striker 1 | . . . . . . . . . . . . . . . . 1 . . . . . . . . Savage 1 | . . . . . . . . . . . . . . . . . . . 1 . . . . . Butcher 1 | . . . . . . . . . . . . . . . . . . . 1 . . . . . Best Kill Streak 11 | 2 2 2 1 . 6 4 4 4 . . 5 1 2 3 11 2 2 1 5 5 3 6 7 10 Combat Bots Only 11 | . 2 2 . . 5 4 2 4 . . 5 1 2 3 11 2 2 1 5 4 3 4 7 9 Max Kills in Single Turn 3 | 2 1 2 1 . 2 3 2 1 . . 3 1 1 1 2 1 1 1 3 2 1 1 2 2 Gunslinging 1 | . . . . . . . . . . . . . . . . . . . 1 1 . . . 1 Exploded 3 | . . 2 . . 1 3 . . . . . . . . 2 . . . . . . . . 2 Melee 1 | . . . . . . . . . . . . . . . . . . . . . . . . 1 Uniques/NPCs Destroyed 1 | . . . 1 . . . . . . . . . . . . . . . . . . . . . EX-BIN (-10/Exiles) Combat | -11 -10 -10 -10 -9 -8 -8 -8 -7 -7 -7 -6 -6 -5 -5 -5 -5 -4 -4 -4 -4 -4 -4 -3 -3 -------- Run | Yrd Mat Min Exi Min Mat Gar Mat Fac Low Zio Pro Fac Fac Upp Upp War Pro Fac Ext Cet Arc Hub Res Arm Hostile Shots Fired 1968 | . 20 5 34 2 77 139 21 53 . . 58 8 50 18 112 2 34 14 108 155 33 82 149 794 Missed 548 | . 5 1 9 . 25 36 7 15 . . 13 3 13 5 28 . 17 10 26 36 7 18 31 243 Damage Taken 24157 | 32 202 52 517 23 624 1094 221 571 . . 773 97 1056 267 2041 42 232 65 1724 2513 548 872 1555 9036 Core 2543 | 16 38 10 129 . 73 87 80 28 . . 50 . 69 23 189 . 30 . 73 218 43 73 127 1187 Absorbed by Shields 1663 | . . . . . . 54 . . . . . . . . . 40 87 16 586 . . . . 880 Reduced by Siege Mode 246 | . . . . . . . . . . . . . . . . . . . 31 161 12 . 20 22 Redirected to Shielding 274 | . . . . . 9 . . . . . . . . . 27 . . . 138 . . . . 100 Ignored by Resistances 3926 | . . . . . 34 16 . . . . . . . . . 19 . 7 116 143 160 569 1095 1767 Regen/Repaired (Parts) 284 | . 66 . . . 69 . . . . 81 . . . . . 68 . . . . . . . . Core Remaining (%) 70 | 93 . . . 22 . . 56 . . . 88 100 . . . . 68 . . . . 64 . . Volleys Fired 759 | 2 24 9 6 . 53 116 21 21 . 1 13 4 20 5 44 12 20 14 57 44 23 51 56 143 Largest 4 | 2 2 2 2 . 4 4 4 4 . 1 1 1 2 4 4 4 4 4 4 4 4 4 4 4 Hottest 327 | 60 120 120 120 . 259 229 265 265 . 30 250 250 250 193 268 260 260 260 327 299 275 275 306 280 Shots Fired 1931 | 4 45 18 12 . 146 203 74 81 . 1 13 4 24 22 120 45 70 53 189 115 58 120 163 351 Gun 1341 | 4 10 . . . 97 80 30 5 . . 13 4 20 11 41 24 35 26 169 115 58 120 163 316 Cannon 565 | . 35 18 12 . 46 122 44 76 . 1 . . 4 11 69 21 35 27 20 . . . . 24 Launcher 25 | . . . . . 3 1 . . . . . . . . 10 . . . . . . . . 11 Special . | . . . . . . . . . . . . . . . . . . . . . . . . . Kinetic 479 | 2 10 . . . 71 73 21 5 . . . . 4 6 28 11 20 13 . 29 13 46 26 101 Thermal 1166 | . 35 18 12 . 70 129 53 76 . 1 13 4 20 16 82 34 50 40 33 58 45 73 82 222 Explosive 17 | . . . . . . . . . . . . . . . 10 . . . . . . . . 7 Electromagnetic 19 | 2 . . . . 5 1 . . . . . . . . . . . . . . . . . 11 Phasic 250 | . . . . . . . . . . . . . . . . . . . 156 28 . 1 55 10 Robot Hit Streak 28 | 2 10 11 5 . 14 11 9 14 . . 5 4 6 9 21 5 6 10 10 28 13 19 19 27 Robot Miss Streak 16 | 1 4 4 3 . 8 4 3 3 . . 16 6 10 3 3 3 8 2 3 3 2 4 3 4 Penetration Max 1 | . . . . . . . . . . . . . . . . 1 . . . 1 . 1 1 1 Secondary Targets 35 | . . . . . . . . . . . . . . . . . . . 13 7 1 . 5 9 Max Gunslinging Chain 2 | . . . . . . . . . . . . . . . . . . . 2 1 1 . 1 2 Shots Hit Robots 1214 | 2 28 6 6 . 82 99 37 37 . . 12 4 23 12 71 26 27 31 126 94 43 84 117 247 Core Hits 661 | 2 9 4 3 . 42 47 19 17 . . 22 6 35 7 67 13 10 9 60 45 18 35 50 141 Critical Kills 20 | . . . . . . . . . . . . . . . 1 . . . . 4 . 4 2 9 Critical Parts Destroyed 21 | . . . . . . . . . . . . . . . . . . . . 6 1 6 . 8 Critical Strikes 90 | . . . . . 4 . 1 . . . . . . . 1 2 . 1 19 15 1 10 14 22 Burn 19 | . . . . . 4 . 1 . . . . . . . . 2 . 1 3 . . . 5 3 Meltdown 2 | . . . . . . . . . . . . . . . 1 . . . . . . . . 1 Destroy 42 | . . . . . . . . . . . . . . . . . . . . 12 1 10 3 16 Corrupt 1 | . . . . . . . . . . . . . . . . . . . . . . . . 1 Intensify 26 | . . . . . . . . . . . . . . . . . . . 16 3 . . 6 1 Melee Attacks 2 | . . . . . . . . . . . . . . . . . . . . . . . . 2 Impact . | . . . . . . . . . . . . . . . . . . . . . . . . . Slashing . | . . . . . . . . . . . . . . . . . . . . . . . . . Piercing 2 | . . . . . . . . . . . . . . . . . . . . . . . . 2 Sneak Attacks . | . . . . . . . . . . . . . . . . . . . . . . . . . Combat Hostiles . | . . . . . . . . . . . . . . . . . . . . . . . . . Follow-up Attacks . | . . . . . . . . . . . . . . . . . . . . . . . . . Damage Inflicted 43722 | 83 453 415 106 . 1786 2167 937 1042 . . 1050 457 1593 345 3750 1072 763 1122 5176 3458 1333 2759 3974 9881 Guns 30253 | 27 86 . . . 1020 633 372 33 . . 1050 457 1345 127 705 502 298 392 4670 3458 1333 2759 3955 7031 Cannons 8575 | . 367 106 106 . 494 1414 565 976 . . . . 108 218 1315 570 465 730 506 . . . . 635 Explosions 4766 | 56 . 309 . . 272 120 . . . . . . 140 . 1730 . . . . . . . . 2139 Melee 60 | . . . . . . . . . . . . . . . . . . . . . . . . 60 Ramming 68 | . . . . . . . . 33 . . . . . . . . . . . . . . 19 16 Kinetic 7338 | 14 86 . . . 551 535 227 33 . . . . 72 50 239 273 153 244 . 730 207 1001 729 2194 Thermal 24779 | 56 367 415 106 . 1066 1512 710 976 . . 1050 457 1381 295 1781 799 610 878 765 1647 1126 1720 1630 5432 Explosive 3216 | . . . . . . . . . . . . . 140 . 1730 . . . . . . . . 1346 Electromagnetic 983 | 13 . . . . 169 120 . . . . . . . . . . . . . . . . . 681 Impact . | . . . . . . . . . . . . . . . . . . . . . . . . . Slashing . | . . . . . . . . . . . . . . . . . . . . . . . . . Piercing 60 | . . . . . . . . . . . . . . . . . . . . . . . . 60 Phasic 7278 | . . . . . . . . . . . . . . . . . . . 4411 1081 . 38 1596 152 Highest Corruption 30 | . . . 2 2 . . . . . . . . 1 2 19 19 1 4 5 7 7 17 1 30 Average Corruption 6 | . . . 1 2 . . . . . . . . 1 1 17 6 1 4 4 6 7 9 1 6 Corruption Purged 1 | . . . . . . . . . . . . . . . . . 1 . . . . . . . Corruption Blocked . | . . . . . . . . . . . . . . . . . . . . . . . . . Effects 216 | . . . . 1 . . . . . . . . 3 9 55 4 2 2 36 18 15 26 1 44 Message Errors 57 | . . . . 1 . . . . . . . . 1 1 16 1 . . 10 3 6 6 1 11 Matter Fused 40 | . . . . . . . . . . . . . 2 2 12 . . 1 3 5 1 6 . 8 Heat Flow Errors 29 | . . . . . . . . . . . . . . 1 4 1 1 . 7 3 4 3 . 5 Energy Discharges 23 | . . . . . . . . . . . . . . . 5 . . . 6 3 1 5 . 3 Parts Rejected 1 | . . . . . . . . . . . . . . . . . . . 1 . . . . . Parts Fused 3 | . . . . . . . . . . . . . . . 2 . . . . . 1 . . . Data Loss (minor) 23 | . . . . . . . . . . . . . . 3 5 1 . 1 3 1 1 2 . 6 Data Loss (major) 5 | . . . . . . . . . . . . . . . 1 . . . 2 . . 2 . . Misfires 13 | . . . . . . . . . . . . . . 2 4 1 1 . 2 1 . 1 . 1 Alerts 4 | . . . . . . . . . . . . . . . 3 . . . . . . . . 1 Misdirections 5 | . . . . . . . . . . . . . . . . . . . . . . . . 5 Weapon Failures 13 | . . . . . . . . . . . . . . . 3 . . . 2 2 1 1 . 4 Overload Shots 3 | . . . . . . . . 1 . . . . . . . 1 . . . 1 . . . . Overflow Damage 186 | . 14 . . . 3 14 27 6 . . . . . . 60 . 16 13 . . . . . 33 Projectiles 176 | . 14 . . . 2 14 27 6 . . . . . . 60 . 16 13 . . . . . 24 Explosions 10 | . . . . . 1 . . . . . . . . . . . . . . . . . . 9 Melee . | . . . . . . . . . . . . . . . . . . . . . . . . . Knockbacks 5 | . . . . . 4 . . . . . . . . . . . . . . . . . . 1 Impact 1 | . . . . . . . . . . . . . . . . . . . . . . . . 1 Kinetic 4 | . . . . . 4 . . . . . . . . . . . . . . . . . . . Secondary . | . . . . . . . . . . . . . . . . . . . . . . . . . Self-Inflicted Damage 384 | 32 . . . . 67 . . 16 . . . . 41 . 221 . . . . . . . . 7 Shots 9 | 1 . . . . 2 . . . . . . . 1 . 5 . . . . . . . . . Rammed 6 | . . . . . . . . 1 . . . . . . . . . . . . . . 1 4 Targets Rammed 6 | . . . . . . . . 1 . . . . . . . . . . . . . . 1 4 Kicked . | . . . . . . . . . . . . . . . . . . . . . . . . . Crushed . | . . . . . . . . . . . . . . . . . . . . . . . . . Highest Temperature 563 | 12 465 108 54 . 489 535 301 196 . . 199 185 378 184 382 230 193 48 431 253 206 384 331 563 Average Temperature 126 | 12 131 46 29 . 149 175 91 104 . . 108 97 96 75 116 41 35 19 117 85 38 123 149 156 Received Heat Transfer 4693 | . 108 30 . 20 234 381 81 303 . . 156 . 162 . 328 . . 9 206 231 99 271 348 1726 Effects 42 | . 2 . . . 3 7 . . . . . . 1 . . . . . 1 . . 3 2 23 Shutdowns 10 | . 1 . . . . 1 . . . . . . 1 . . . . . 1 . . . . 6 Energy Bleed 5 | . 1 . . . . . . . . . . . . . . . . . . . . . 1 3 Interference 19 | . . . . . . 4 . . . . . . . . . . . . . . . 3 1 11 Matter Decay 1 | . . . . . . 1 . . . . . . . . . . . . . . . . . . Short Circuit 4 | . . . . . 2 1 . . . . . . . . . . . . . . . . . 1 Damage (minor) 2 | . . . . . 1 . . . . . . . . . . . . . . . . . . 1 Damage (core) 1 | . . . . . . . . . . . . . . . . . . . . . . . . 1 Siege Activations 12 | . . . . . . . . . . . . . . . . . . . 2 3 2 . 1 4 Total Turns 161 | . . . . . . . . . . . . . . . . . . . 24 56 18 . 30 33 Longest Duration 30 | . . . . . . . . . . . . . . . . . . . 17 27 11 . 30 18 Robots Corrupted 5 | . . . . . . . . . . . . . . . . . . . . . . . . 5 Combat Hostiles 4 | . . . . . . . . . . . . . . . . . . . . . . . . 4 Parts Fried 12 | . . . . . . . . . . . . . . . . . . . . . . . . 12 Impact Corruptions . | . . . . . . . . . . . . . . . . . . . . . . . . . Robots Melted 6 | . . . . . . . . . . . . . 1 1 2 . . . . . . . 1 1 Combat Hostiles 6 | . . . . . . . . . . . . . 1 1 2 . . . . . . . 1 1 Parts Melted 104 | 1 1 1 5 . 3 3 5 1 . . 1 1 8 3 4 . 3 . 2 2 9 8 13 30 Heat Transferred 34559 | 100 777 572 222 . 2135 2701 1381 1410 . . 1525 675 1998 384 2329 928 596 677 1180 1813 1406 2108 2986 6656 Parts Sabotaged 3 | . . . . . . . . . . . . . . . . . . . . . . . . 3 Parts Stolen . | . . . . . . . . . . . . . . . . . . . . . . . . . Parts Stripped . | . . . . . . . . . . . . . . . . . . . . . . . . . Power Chain Reactions 4 | 1 . . . . . 1 . . . . . . . . . . . . . . . . . 2 Alert | -11 -10 -10 -10 -9 -8 -8 -8 -7 -7 -7 -6 -6 -5 -5 -5 -5 -4 -4 -4 -4 -4 -4 -3 -3 ------- Run | Yrd Mat Min Exi Min Mat Gar Mat Fac Low Zio Pro Fac Fac Upp Upp War Pro Fac Ext Cet Arc Hub Res Arm Peak Influence 2474 | 10 137 242 . . 488 1323 733 719 . . . 187 391 . . . . 1175 2474 1594 807 589 725 1888 Initial 1384 | . 6 53 . . . 219 644 287 . . . 109 91 . . . . 485 492 1384 624 212 309 380 Average 696 | 1 93 149 . . 187 821 592 541 . . . 141 233 . . . . 762 1388 1506 771 347 475 878 Maximum Alert Level 5 | . . 1 . . 2 4 3 3 . . . . 1 . . . . 4 5 4 3 2 3 5 Low Security (%) 16 | 100 100 88 . 100 61 . . . . . . 100 44 . . . . . . . . . . . Level 1 16 | . . 11 . . 25 17 . 19 . . . . 55 . . . . . . . . 73 26 6 Level 2 28 | . . . . . 13 13 90 48 . . . . . . . . . 51 19 . 16 26 72 43 Level 3 16 | . . . . . . 45 9 32 . . . . . . . . . 37 22 . 83 . . 12 Level 4 15 | . . . . . . 23 . . . . . . . . . . . 11 19 100 . . . 29 Level 5 5 | . . . . . . . . . . . . . . . . . . . 38 . . . . 5 High Security . | . . . . . . . . . . . . . . . . . . . . . . . . 1 Max Security . | . . . . . . . . . . . . . . . . . . . . . . . . . Squads Dispatched 44 | . 1 . . . 3 . 1 5 . . . 1 2 . 1 . . 2 11 . . 1 4 12 Investigation 12 | . 1 . . . . . 1 2 . . . 1 . . . . . 1 2 . . . 1 3 Extermination 9 | . . . . . . . . . . . . . 1 . . . . 1 . . . 1 2 4 Reinforcement 8 | . . . . . 1 . . 1 . . . . 1 . . . . . 3 . . . . 2 Assault 13 | . . . . . . . . 2 . . . . . . 1 . . . 6 . . . 1 3 Garrison 2 | . . . . . 2 . . . . . . . . . . . . . . . . . . . Intercept . | . . . . . . . . . . . . . . . . . . . . . . . . . Searches Triggered . | . . . . . . . . . . . . . . . . . . . . . . . . . Construction Impeded 1 | . . . . . . . . . . . . . . . . . . . 1 . . . . . Haulers Reinforced . | . . . . . . . . . . . . . . . . . . . . . . . . . Active Scanning Responses . | . . . . . . . . . . . . . . . . . . . . . . . . . Cargo Convoy Interrupts . | . . . . . . . . . . . . . . . . . . . . . . . . . Stealth | -11 -10 -10 -10 -9 -8 -8 -8 -7 -7 -7 -6 -6 -5 -5 -5 -5 -4 -4 -4 -4 -4 -4 -3 -3 --------- Run | Yrd Mat Min Exi Min Mat Gar Mat Fac Low Zio Pro Fac Fac Upp Upp War Pro Fac Ext Cet Arc Hub Res Arm Distress Signals 16 | . 1 . . . 1 . 3 . . . . . 1 . . . . . 2 2 . 2 . 4 Communications Jammed 78 | . . . . . . . . . . . . . . . . . 3 1 74 . . . . . Distress Signals 75 | . . . . . . . . . . . . . . . . . . 1 74 . . . . . Times Spotted 531 | . 9 4 3 13 28 32 14 18 . . 15 2 18 4 31 30 8 16 92 19 12 21 28 114 Peak Tracking Total 20 | . 3 2 3 13 4 5 3 6 . . 6 2 4 2 12 8 2 5 12 5 2 7 6 20 Tactical Retreats 28 | . 1 1 1 1 2 1 . . . . 1 . . . 3 . . . 3 . . 2 2 10 Traps | -11 -10 -10 -10 -9 -8 -8 -8 -7 -7 -7 -6 -6 -5 -5 -5 -5 -4 -4 -4 -4 -4 -4 -3 -3 ------- Run | Yrd Mat Min Exi Min Mat Gar Mat Fac Low Zio Pro Fac Fac Upp Upp War Pro Fac Ext Cet Arc Hub Res Arm Traps Triggered 22 | . . . . . . 7 1 4 . . . . . . . . . . 4 . . . . 6 Indirectly 3 | . . . . . . . . . . . . . . . . . . . . . . . . 3 Trap Hack Attempts . | . . . . . . . . . . . . . . . . . . . . . . . . . Triggered . | . . . . . . . . . . . . . . . . . . . . . . . . . Disarmed . | . . . . . . . . . . . . . . . . . . . . . . . . . Reprogrammed . | . . . . . . . . . . . . . . . . . . . . . . . . . Reused . | . . . . . . . . . . . . . . . . . . . . . . . . . Traps Extracted . | . . . . . . . . . . . . . . . . . . . . . . . . . Installed 8 | . . . . . . . . . . . . . . . . . . . . . . 8 . . Triggered 10 | . . . . . . . . . . . . . . . . 10 . . . . . . . . Most Traps Carried 5 | . . . . . . 4 4 4 4 4 5 5 5 5 5 5 5 5 . . . 2 . . Machines | -11 -10 -10 -10 -9 -8 -8 -8 -7 -7 -7 -6 -6 -5 -5 -5 -5 -4 -4 -4 -4 -4 -4 -3 -3 ---------- Run | Yrd Mat Min Exi Min Mat Gar Mat Fac Low Zio Pro Fac Fac Upp Upp War Pro Fac Ext Cet Arc Hub Res Arm Machines Disabled 46 | . . 5 1 . 2 6 . 3 . . . . 2 . . 1 . 3 2 3 2 6 1 9 Max in Single Turn 4 | . . 4 1 . 1 1 . 1 . . . . 2 . . 1 . . 1 1 1 2 1 1 Garrison Access 3 | . . . . . . . . 1 . . . . 1 . . . . 1 . . . . . . Network Hub 1 | . . . . . . . . . . . . . . . . . . . . . . 1 . . Machines Repaired . | . . . . . . . . . . . . . . . . . . . . . . . . . Machines Dismantled 2 | . . . . . . . . . . . . . . . . . . . 1 . . 1 . . Machines Sabotaged . | . . . . . . . . . . . . . . . . . . . . . . . . . Overloaded Fab Kills . | . . . . . . . . . . . . . . . . . . . . . . . . . Hacking | -11 -10 -10 -10 -9 -8 -8 -8 -7 -7 -7 -6 -6 -5 -5 -5 -5 -4 -4 -4 -4 -4 -4 -3 -3 --------- Run | Yrd Mat Min Exi Min Mat Gar Mat Fac Low Zio Pro Fac Fac Upp Upp War Pro Fac Ext Cet Arc Hub Res Arm Machines Accessed 51 | . 2 . 2 . 3 2 5 6 . . . 1 3 3 . 2 . 3 7 1 . . 3 8 Terminals 18 | . 1 . . . . 2 4 3 . . . . . . . . . 1 6 1 . . . . Fabricators 11 | . . . . . . . . 2 . . . . 1 . . . . . . . . . 1 7 Repair Stations 3 | . 1 . . . 1 . . . . . . . 1 . . . . . . . . . . . Recycling Units 3 | . . . . . . . . . . . . . . . . . . . 1 . . . 1 1 Scanalyzers 5 | . . . . . 1 . 1 . . . . 1 . . . . . 1 . . . . 1 . Garrison Access 4 | . . . . . 1 . . 1 . . . . 1 . . . . 1 . . . . . . Total Hacks 127 | . 8 . 5 . 8 4 9 14 . . . 7 5 8 . 5 . 6 17 3 . . 7 21 Successful 69 | . 5 . 5 . 5 1 2 4 . . . 6 1 8 . 5 . 3 7 . . . 5 12 Failed 58 | . 3 . . . 3 3 7 10 . . . 1 4 . . . . 3 10 3 . . 2 9 Catastrophic 16 | . . . . . . . 2 3 . . . . 1 . . . . 1 4 1 . . 1 3 Database Lockouts . | . . . . . . . . . . . . . . . . . . . . . . . . . Manual 79 | . 1 . 1 . . . 5 6 . . . . 13 . . . . 9 8 . . 6 8 22 Terminals 38 | . 2 . . . . 4 8 8 . . . . . . . . . 1 12 3 . . . . Fabricators 26 | . . . . . . . . 5 . . . . 3 . . . . . . . . . 1 17 Repair Stations 10 | . 6 . . . 3 . . . . . . . 1 . . . . . . . . . . . Recycling Units 12 | . . . . . . . . . . . . . . . . . . . 5 . . . 3 4 Scanalyzers 18 | . . . . . 3 . 1 . . . . 7 . . . . . 4 . . . . 3 . Garrison Access 5 | . . . . . 2 . . 1 . . . . 1 . . . . 1 . . . . . . Terminal Hacks 31 | . 1 . 5 . . 1 2 3 . . . . . 8 . 5 . 1 5 . . . . . Record 10 | . . . 4 . . . . . . . . . . 6 . . . . . . . . . . Prototype ID Bank 5 | . . . . . . . . 1 . . . . . . . 4 . . . . . . . . Open Door 9 | . . . . . . . . . . . . . . 2 . 1 . 1 5 . . . . . Branch Access Points 2 | . . . . . . . 1 1 . . . . . . . . . . . . . . . . Emergency Access Points 1 | . . . . . . 1 . . . . . . . . . . . . . . . . . . Unreport Threat 1 | . . . . . . . 1 . . . . . . . . . . . . . . . . . Zone Layout 2 | . 1 . . . . . . 1 . . . . . . . . . . . . . . . . Derelict Proto ID Bank 1 | . . . 1 . . . . . . . . . . . . . . . . . . . . . Fabricator Hacks 8 | . . . . . . . . . . . . . . . . . . . . . . . . 8 Load Schematic 3 | . . . . . . . . . . . . . . . . . . . . . . . . 3 Build 5 | . . . . . . . . . . . . . . . . . . . . . . . . 5 Repair Station Hacks 5 | . 3 . . . 2 . . . . . . . . . . . . . . . . . . . Scan Component 3 | . 2 . . . 1 . . . . . . . . . . . . . . . . . . . Repair 2 | . 1 . . . 1 . . . . . . . . . . . . . . . . . . . Recycling Unit Hacks 4 | . . . . . . . . . . . . . . . . . . . 2 . . . 1 1 Report Inventory 2 | . . . . . . . . . . . . . . . . . . . 1 . . . 1 . Retrieve Components 2 | . . . . . . . . . . . . . . . . . . . 1 . . . . 1 Scanalyzer 10 | . . . . . 2 . . . . . . 6 . . . . . 1 . . . . 1 . Insert Component 5 | . . . . . 1 . . . . . . 2 . . . . . 1 . . . . 1 . Analyze 5 | . . . . . 1 . . . . . . 4 . . . . . . . . . . . . Garrison Access Hacks 3 | . . . . . 1 . . . . . . . 1 . . . . 1 . . . . . . Unlock Access 1 | . . . . . 1 . . . . . . . . . . . . . . . . . . . Seal Access 2 | . . . . . . . . . . . . . 1 . . . . 1 . . . . . . Unauthorized Hacks 8 | . 1 . . . . . . 1 . . . . . . . . . . . . . . 3 3 Terminals 1 | . 1 . . . . . . . . . . . . . . . . . . . . . . . Track 1 | . 1 . . . . . . . . . . . . . . . . . . . . . . . Fabricators 4 | . . . . . . . . 1 . . . . . . . . . . . . . . 1 2 Liberate 1 | . . . . . . . . . . . . . . . . . . . . . . . . 1 Recompile 3 | . . . . . . . . 1 . . . . . . . . . . . . . . 1 1 Repair Stations . | . . . . . . . . . . . . . . . . . . . . . . . . . Recycling Units 3 | . . . . . . . . . . . . . . . . . . . . . . . 2 1 Reject 2 | . . . . . . . . . . . . . . . . . . . . . . . 1 1 Mask 1 | . . . . . . . . . . . . . . . . . . . . . . . 1 . Scanalyzers . | . . . . . . . . . . . . . . . . . . . . . . . . . Garrison Access . | . . . . . . . . . . . . . . . . . . . . . . . . . Data Cores Recovered 2 | . . . . . 1 . 1 . . . . . . . . . . . . . . . . . Used . | . . . . . . . . . . . . . . . . . . . . . . . . . Hacking Detections 31 | . 2 . . . 3 2 4 6 . . . 1 2 . . . . 1 3 1 . . 1 5 Full Trace Events 8 | . 1 . . . . 1 . 1 . . . 1 . . . . . 1 2 . . . . 1 Feedback Events 1 | . . . . . . . . . . . . . . . . . . . . . . . . 1 Corruption 1 | . . . . . . . . . . . . . . . . . . . . . . . . 1 Feedback Blocked . | . . . . . . . . . . . . . . . . . . . . . . . . . Robot Schematics Acquired 3 | . . . . . . . . . . 3 . . . . . . . . . . . . . . Robots Built . | . . . . . . . . . . . . . . . . . . . . . . . . . Authchips . | . . . . . . . . . . . . . . . . . . . . . . . . . Time . | . . . . . . . . . . . . . . . . . . . . . . . . . Total Robot Build Rating . | . . . . . . . . . . . . . . . . . . . . . . . . . Part Schematics Acquired 55 | . . . . . 1 . . . . 13 . 1 11 . . . . 15 . . . . . 14 Parts Built 5 | . . . . . . . . . . . . . . . . . . . . . . . . 5 Authchips 3 | . . . . . . . . . . . . . . . . . . . . . . . . 3 Time 366 | . . . . . . . . . . . . . . . . . . . . . . . . 366 Total Part Build Rating 37 | . . . . . . . . . . . . . . . . . . . . . . . . 37 Parts Repaired 2 | . 1 . . . 1 . . . . . . . . . . . . . . . . . . . Time 62 | . 36 . . . 26 . . . . . . . . . . . . . . . . . . . Parts Recycled . | . . . . . . . . . . . . . . . . . . . . . . . . . Recycled Matter . | . . . . . . . . . . . . . . . . . . . . . . . . . Retrieved Matter . | . . . . . . . . . . . . . . . . . . . . . . . . . Retrieved Components 10 | . . . . . . . . . . . . . . . . . . . 10 . . . . . Parts Scanalyzed 5 | . . . . . 1 . . . . . . 2 . . . . . 1 . . . . 1 . Part Schematics Acquired 2 | . . . . . 1 . . . . . . 1 . . . . . . . . . . . . Parts Damaged 1 | . . . . . . . . . . . . . . . . . . . . . . . 1 . Bothacking | -11 -10 -10 -10 -9 -8 -8 -8 -7 -7 -7 -6 -6 -5 -5 -5 -5 -4 -4 -4 -4 -4 -4 -3 -3 ------------ Run | Yrd Mat Min Exi Min Mat Gar Mat Fac Low Zio Pro Fac Fac Upp Upp War Pro Fac Ext Cet Arc Hub Res Arm Used RIF Installer . | . . . . . . . . . . . . . . . . . . . . . . . . . Robots Hacked . | . . . . . . . . . . . . . . . . . . . . . . . . . Non-combat . | . . . . . . . . . . . . . . . . . . . . . . . . . Combat . | . . . . . . . . . . . . . . . . . . . . . . . . . Robot Hacks Applied . | . . . . . . . . . . . . . . . . . . . . . . . . . Relay Couplers Released 1 | . . . . . . . . 1 . . . . . . . . . . . . . . . . Machine Destruction 1 | . . . . . . . . 1 . . . . . . . . . . . . . . . . Fabnet Peak Effective % . | . . . . . . . . . . . . . . . . . . . . . . . . . Robots Rewired 27 | . . . . . . . . . . . . . . . 2 4 . . 21 . . . . . Allies Hacked 2 | . . . . . . . . . . . . . 1 . . . . . . . . 1 . . Hacks Repelled . | . . . . . . . . . . . . . . . . . . . . . . . . . Allies | -11 -10 -10 -10 -9 -8 -8 -8 -7 -7 -7 -6 -6 -5 -5 -5 -5 -4 -4 -4 -4 -4 -4 -3 -3 -------- Run | Yrd Mat Min Exi Min Mat Gar Mat Fac Low Zio Pro Fac Fac Upp Upp War Pro Fac Ext Cet Arc Hub Res Arm Total Allies 63 | . . . . . . 1 . 3 . 4 . . 4 . 2 4 . 4 32 . . 3 . 6 Largest Group 20 | . . . . . . 1 . 3 . 4 4 4 4 1 2 4 2 5 20 . . 2 . 3 Highest-Rated Group 1104 | . . . . . . 39 . 93 . 153 153 153 150 28 58 219 130 439 1104 . . 206 . 288 Highest-Rated Ally 159 | . . . . . . 39 . 31 . 40 40 40 40 28 29 65 65 103 159 . . 103 . 96 Zionite Dispatches 12 | . . . . . . . . . . . . . 2 . . . . 2 2 . . 2 1 3 Heavy 5 | . . . . . . . . . . . . . . . . . . 2 2 . . 1 . . Light 1 | . . . . . . . . . . . . . . . . . . . . . . . . 1 Recon 1 | . . . . . . . . . . . . . . . . . . . . . . . 1 . Fire 1 | . . . . . . . . . . . . . 1 . . . . . . . . . . . Hacker 1 | . . . . . . . . . . . . . . . . . . . . . . . . 1 Thermal Resupply 1 | . . . . . . . . . . . . . 1 . . . . . . . . . . . Trap Resupply 1 | . . . . . . . . . . . . . . . . . . . . . . 1 . . Hacking Resupply 1 | . . . . . . . . . . . . . . . . . . . . . . . . 1 Total Orders 9 | . . . . . . . . . . . . . . 2 . . . . . . . . 7 . EXPLORE 9 | . . . . . . . . . . . . . . 2 . . . . . . . . 7 . Ally Attacks 534 | . . . 6 . . 34 . 24 . . 14 5 68 1 8 8 . 36 282 . . 23 . 25 Total Damage 19550 | . . . 365 . . 357 . 360 . . 607 57 952 21 149 170 . 2691 10957 . . 1532 . 1332 Kills 114 | . . . . . . 6 . 3 . . 7 1 8 . . 1 . 14 59 . . 7 . 8 Allies Corrupted 4 | . . . . . . . . . . . . . 2 . . . . . 1 . . 1 . . Allies Melted 1 | . . . . . . . . . . . . . . . . 1 . . . . . . . . Turrets Deployed 3 | . . . 3 . . . . . . . . . . . . . . . . . . . . . Intel | -11 -10 -10 -10 -9 -8 -8 -8 -7 -7 -7 -6 -6 -5 -5 -5 -5 -4 -4 -4 -4 -4 -4 -3 -3 ------- Run | Yrd Mat Min Exi Min Mat Gar Mat Fac Low Zio Pro Fac Fac Upp Upp War Pro Fac Ext Cet Arc Hub Res Arm Robot Analysis Total . | . . . . . . . . . . . . . . . . . . . . . . . . . Derelict Logs Recovered 8 | . . . . 1 . . . . . 1 1 . . 1 2 . 2 . . . . . . . Drone Launches 9 | . . . . . . . . . . . . . . 2 . . . . . . . . 7 . Drone Recoveries 8 | . . . . . . . . . . . . . . 2 . . . . . . . . 6 . Zionite Intel Received 3 | . . . . . . . . . . . . . 1 . . . . 1 . . . . . 1 Component Schematics 2 | . . . . . . . . . . . . . . . . . . 1 . . . . . 1 Prototype Schematics 1 | . . . . . . . . . . . . . 1 . . . . . . . . . . . Exploration | -11 -10 -10 -10 -9 -8 -8 -8 -7 -7 -7 -6 -6 -5 -5 -5 -5 -4 -4 -4 -4 -4 -4 -3 -3 ------------- Run | Yrd Mat Min Exi Min Mat Gar Mat Fac Low Zio Pro Fac Fac Upp Upp War Pro Fac Ext Cet Arc Hub Res Arm Turns Passed 17511 | 68 376 375 327 75 833 1221 666 583 76 1633 874 139 832 784 1208 831 622 469 1394 631 431 740 701 1622 Spaces Moved 9540 | 45 201 328 253 121 542 748 267 380 60 1149 544 70 323 380 540 459 406 344 549 275 59 338 300 859 Core 384 | 1 . . 22 100 10 . . . . . . . . . . . . . . . . . . 251 Treads 2466 | . . . 79 . . 20 144 . . . . 14 321 . . 2 . . 324 275 59 338 300 590 Legs 1834 | . . . . . . . . . . . . . . . 402 457 406 344 225 . . . . . Wheels 4838 | 44 201 328 152 21 532 728 123 380 60 1149 544 56 2 380 138 . . . . . . . . . Hover . | . . . . . . . . . . . . . . . . . . . . . . . . . Flight 18 | . . . . . . . . . . . . . . . . . . . . . . . . 18 Fastest Speed 50 | 50 100 105 50 50 50 105 110 110 125 115 130 130 162 120 135 97 105 105 102 160 160 160 145 50 Average Speed 134 | 94 110 105 117 56 102 110 217 123 125 128 130 168 223 136 182 142 105 106 143 161 160 160 153 122 Slowest Speed 470 | 100 115 105 160 90 105 320 320 125 125 130 130 320 400 195 470 330 105 108 182 240 160 160 160 162 Overloaded Moves . | . . . . . . . . . . . . . . . . . . . . . . . . . Propulsion Burnouts . | . . . . . . . . . . . . . . . . . . . . . . . . . Robots Hopped 6 | . . . . . . . . . . . . . . . . . . . . . . . . 6 Cave-ins Triggered . | . . . . . . . . . . . . . . . . . . . . . . . . . Exploration Rate (%) 48 | 3 31 61 66 46 34 92 29 14 12 89 72 2 12 97 80 68 64 12 78 70 71 31 18 66 Regions Visited 24 Branch Regions 15 Pre-discovered Areas 3 | . . . 1 . . . . . 1 1 . . . . . . . . . . . . . . Known Exits Taken 7 | . . . . . 1 . 1 1 . . 1 . 1 . . . 1 . . . . 1 . . Unknown Exits Taken 16 | 1 1 1 1 1 . . . . 1 1 . 1 . 1 1 1 . 1 1 1 1 . 1 . Scrap Searched 18 | . . 1 . 2 . . . . 1 1 3 . . 5 3 . 2 . . . . . . . Spaces Dug 14 | . . . . . . . . 6 . . . . . . . . 1 1 . . . . 1 5 Terrain Destroyed 345 | . . 22 . . 9 3 17 13 . . . . 24 2 78 7 21 12 40 11 5 21 19 41 Melee 1 | . . . . . . . . . . . . . . . . . . . . . . . . 1 Projectile 216 | . . . . . 2 . 17 13 . . . . 2 2 30 7 21 12 40 11 5 21 19 14 AOE 128 | . . 22 . . 7 3 . . . . . . 22 . 48 . . . . . . . . 26 Terrain Rammed . | . . . . . . . . . . . . . . . . . . . . . . . . . Walls Destroyed . | . . . . . . . . . . . . . . . . . . . . . . . . . Machines Disabled . | . . . . . . . . . . . . . . . . . . . . . . . . . Actions | -11 -10 -10 -10 -9 -8 -8 -8 -7 -7 -7 -6 -6 -5 -5 -5 -5 -4 -4 -4 -4 -4 -4 -3 -3 --------- Run | Yrd Mat Min Exi Min Mat Gar Mat Fac Low Zio Pro Fac Fac Upp Upp War Pro Fac Ext Cet Arc Hub Res Arm Total 12814 | 63 311 341 273 126 721 986 314 448 61 1302 675 84 392 635 678 606 551 411 1015 381 355 443 420 1222 Wait 1532 | 6 72 3 . . 68 50 14 8 . 135 113 6 12 231 57 41 122 30 96 22 271 26 33 116 Move 9506 | 44 200 327 252 120 542 746 266 379 59 1148 543 69 322 379 539 458 405 343 548 274 58 337 299 849 Hop 4 | . . . . . . . . . . . . . . . . . . . . . . . . 4 Pick Up 115 | 4 4 . 4 1 15 7 . 5 1 1 1 3 12 5 7 11 . 3 8 5 . . 3 15 Fast Attach 156 | 6 4 . . 1 13 3 1 . . 5 . . 9 4 8 17 2 9 16 11 1 6 10 30 Attach 55 | . . . . 3 4 3 . 1 . 1 2 2 5 2 7 2 . 2 4 2 . 2 3 10 Detach 8 | . 2 . . . 1 . . . . 1 . . . . . . . . . 1 . 1 2 . Swap 105 | 1 2 1 2 . 9 13 6 4 . . 2 . 3 3 3 10 1 . 10 7 1 4 3 20 Drop 203 | . 3 1 9 1 16 12 6 5 1 10 . . 9 6 . 28 1 10 26 15 1 5 10 28 Fire 759 | 2 24 9 6 . 53 116 21 21 . 1 13 4 20 5 44 12 20 14 57 44 23 51 56 143 Melee 2 | . . . . . . . . . . . . . . . . . . . . . . . . 2 Ram 6 | . . . . . . . . 1 . . . . . . . . . . . . . . . 5 Kick . | . . . . . . . . . . . . . . . . . . . . . . . . . Crush 1 | . . . . . . . . . . . . . . . . . . . . . . . 1 . Escape Stasis 64 | . . . . . . 36 . 24 . . . . . . . . . . 4 . . . . . Rewire 279 | . . . . . . . . . . . 1 . . . 13 27 . . 238 . . . . . Trap 8 | . . . . . . . . . . . . . . . . . . . . . . 8 . . Miscellaneous 11 | . . . . . . . . . . . . . . . . . . . 8 . . 3 . . Route ------- -11/Scrapyard -10/Materials -10/Mines (discovered 2 exits: [*Mat] / *Exi) -10/Exiles (discovered 2 exits: [*Min x2]) -9/Mines -8/Materials (discovered 3 exits: Fac x2 / Gar) -8/Garrison (discovered 3 exits: *Mat x3) -8/Materials -7/Factory (discovered 2 exits: *Low x2) -7/Lower Caves -7/Zion -6/Proximity Caves -6/Factory -5/Factory -5/Upper Caves -5/Upper Caves (discovered 2 exits: *Fac / *War) -5/Warlord -4/Proximity Caves -4/Factory (discovered 3 exits: Res x2 / *Ext) -4/Extension (discovered 2 exits: *Res / *Cet) -4/Cetus (discovered 2 exits: *Res / [*Arc]) -4/Archives (discovered 2 exits: *Hub x2) -4/Hub_04(d) -3/Research (discovered 2 exits: Res / *Arm) -3/Armory History --------- Turn | Location | Event 2 | -11/Scrapyard | Met Revision 17 18 | -11/Scrapyard | Discovered new exit (range 14) 69 | -11/Scrapyard | Entered Materials 301 | -10/Materials | Build established: Mutant 385 | -10/Materials | Discovered new exit (range 16) 435 | -10/Materials | Repaired Broken Beam Cannon 445 | -10/Materials | Entered Mines 690 | -10/Mines | Discovered new exit (range 8) 816 | -10/Mines | Deemed a non-threat by the Exiles lab entrance 816 | -10/Mines | Discovered new exit (range 5) 820 | -10/Mines | Entered Exiles 836 | -10/Exiles | Discovered new exit (range 15) 847 | -10/Exiles | Met 8R-AWN 865 | -10/Exiles | Met EX-HEX 934 | -10/Exiles | Met EX-BIN 949 | -10/Exiles | Aligned with FarCom system 950 | -10/Exiles | Given EX-Vault access code 975 | -10/Exiles | Opened EX-Vault 988 | -10/Exiles | Found Deploy-a-Sentry 990 | -10/Exiles | Found Deploy-a-Sentry 993 | -10/Exiles | Found Deploy-a-Sentry 1028 | -10/Exiles | Warned to stay clear of 0b10 Research branches 1045 | -10/Exiles | Exiles lab attacked by MAIN.C 1087 | -10/Exiles | Learned location of Zion (-7) 1108 | -10/Exiles | DAS Turret deployed 1110 | -10/Exiles | DAS Turret deployed 1112 | -10/Exiles | DAS Turret deployed 1113 | -10/Exiles | Attacked by the Exiles 1118 | -10/Exiles | Destroyed EX-BIN 1130 | -10/Exiles | Core integrity fell below 50% 1143 | -10/Exiles | Discovered new exit (range 10) 1147 | -10/Exiles | Entered Mines 1154 | -9/Mines | Lost 3 allies 1155 | -9/Mines | Assembled infested the area 1160 | -9/Mines | Assisted by a Guerilla fighting off Assembled 1164 | -9/Mines | Learned 4 Materials zone layouts 1175 | -9/Mines | Received a Rocket Launcher from a helpful Derelict 1176 | -9/Mines | Lost 3 parts (1n1u1w) 1219 | -9/Mines | Discovered new exit (range 6) 1222 | -9/Mines | Entered Materials 1222 | -8/Materials | Evolved 4 slots: Propulsion x1, Utility x1, Weapon x2 1223 | -8/Materials | Identified exit to Factory 1348 | -8/Materials | Repaired Lgt. Armor Plating 1593 | -8/Materials | Build established: Tank 1858 | -8/Materials | Garrison activated, responded to threat 2055 | -8/Materials | Identified exit to Garrison 2055 | -8/Materials | Entered Garrison 2076 | -8/Garrison | Rescued a captive Derelict 2102 | -8/Garrison | Triggered checkpoint 2414 | -8/Garrison | Triggered checkpoint 2488 | -8/Garrison | Discovered new exit (range 9) 2538 | -8/Garrison | Triggered checkpoint 2648 | -8/Garrison | Triggered checkpoint 2738 | -8/Garrison | Discovered new exit (range 11) 2860 | -8/Garrison | Attempted to access garrison exit controls, blocked by remote lockdown 2922 | -8/Garrison | Triggered checkpoint 3151 | -8/Garrison | Discovered new exit (range 9) 3168 | -8/Garrison | Triggered checkpoint 3276 | -8/Garrison | Entered Materials 3294 | -8/Materials | Build established: Gunner 3937 | -8/Materials | Discovered exit to Factory (range 4) 3942 | -8/Materials | Entered Factory 3942 | -7/Factory | Evolved 2 slots: Utility x2 4085 | -7/Factory | Allied Derelicts emerged from ambush trap array 4283 | -7/Factory | Build established: Tank 4342 | -7/Factory | First assault squad dispatched 4354 | -7/Factory | Identified exit to Lower Caves 4525 | -7/Factory | Entered Lower Caves 4532 | -7/Lower Caves | Met a Warlord Commander 4533 | -7/Lower Caves | Learned location of Warlord (-5) 4534 | -7/Lower Caves | Warlord Commander delivered Encrypted Comm Array 4540 | -7/Lower Caves | Found Encrypted Comm Array 4559 | -7/Lower Caves | A Derelict revealed a hidden shortcut to a safe place 4601 | -7/Lower Caves | Entered Zion 4640 | -7/Zion | Discovered new exit (range 14) 4886 | -7/Zion | Found Prototype Energy Gun 4886 | -7/Zion | Identified Storm Laser 4931 | -7/Zion | Learned Factory emergency access door positions 5582 | -7/Zion | Found Prototype Launcher 5582 | -7/Zion | Identified Rocket Array 5880 | -7/Zion | Imprinted 5882 | -7/Zion | Declared Zion's savior 6234 | -7/Zion | Entered Proximity Caves 6234 | -6/Proximity Caves | Accompanied by 4 allies 6391 | -6/Proximity Caves | Attracted the attention of an 0b10 checkpoint 6769 | -6/Proximity Caves | Identified exit to Factory 6970 | -6/Proximity Caves | Spotted B-75 Beast 7108 | -6/Proximity Caves | Entered Factory 7108 | -6/Factory | Accompanied by 4 allies 7108 | -6/Factory | Evolved 2 slots: Propulsion x1, Utility x1 7209 | -6/Factory | Discovered new exit (range 8) 7247 | -6/Factory | Entered another Factory area 7247 | -5/Factory | Accompanied by 4 allies 7247 | -5/Factory | Evolved 2 slots: Power x1, Utility x1 7248 | -5/Factory | Identified exit to Upper Caves 7513 | -5/Factory | Retrieved Zion intel report: Prototype Schematics 7514 | -5/Factory | Zion Thermal Resupply teleported in 7671 | -5/Factory | Lost 4 allies 7784 | -5/Factory | Zion Fire squad teleported in 7923 | -5/Factory | Build established: Scavenger-Tank 7984 | -5/Factory | Zion dispatch access revoked 8079 | -5/Factory | Entered Upper Caves 8079 | -5/Upper Caves | Accompanied by 1 ally 8114 | -5/Upper Caves | Lost 3 allies 8349 | -5/Upper Caves | Discovered new exit (range 79) 8459 | -5/Upper Caves | Learned 8 Research zone layouts 8459 | -5/Upper Caves | Learned Armory terminal intel 8708 | -5/Upper Caves | Learned Factory terminal intel 8863 | -5/Upper Caves | Entered another Upper Caves area 8864 | -5/Upper Caves | Identified exit to Factory 8971 | -5/Upper Caves | Attracted the attention of an 0b10 outpost 8985 | -5/Upper Caves | System corruption reached 10% 9040 | -5/Upper Caves | Destroyed 11 combat bots 9045 | -5/Upper Caves | Lost 11 parts (2p3n3u3w) 9375 | -5/Upper Caves | Attracted the attention of an 0b10 checkpoint 9637 | -5/Upper Caves | Lost 5 parts (1p1n2u1w) 9859 | -5/Upper Caves | Learned Factory emergency access door positions 9865 | -5/Upper Caves | Learned 4 Factory zone layouts 9996 | -5/Upper Caves | Discovered new exit (range 11) 10071 | -5/Upper Caves | Entered Warlord 10116 | -5/Warlord | Build established: Derelict-Skirmisher 10136 | -5/Warlord | System corruption cleaned by Quarantine Array 10286 | -5/Warlord | Rebuked by Warlord 10311 | -5/Warlord | Warlord's base attacked by MAIN.C 10339 | -5/Warlord | Found Prototype Device 10339 | -5/Warlord | Identified Exp. Cloaking Device 10350 | -5/Warlord | Found Prototype Device 10350 | -5/Warlord | Identified Thermal Barrier 10353 | -5/Warlord | Found Prototype Processor 10359 | -5/Warlord | Found Prototype Reactor 10452 | -5/Warlord | Found Prototype Launcher 10459 | -5/Warlord | Found Prototype Energy Cannon 10461 | -5/Warlord | Found Prototype Energy Cannon 10462 | -5/Warlord | Identified Vortex Cannon (x2) 10661 | -5/Warlord | Warlord forces counterattacked 10737 | -5/Warlord | Spotted Executioner 10743 | -5/Warlord | P-80 Master assimilated allied IJ-MBT(g) 10746 | -5/Warlord | P-70 Sage assimilated allied 7G-FSW(g) 10755 | -5/Warlord | Allies destroyed Executioner 10774 | -5/Warlord | Spotted Striker 10783 | -5/Warlord | Destroyed Striker 10820 | -5/Warlord | Lost 11 allies 10846 | -5/Warlord | Spotted Executioner 10851 | -5/Warlord | Discovered new exit (range 15) 10902 | -5/Warlord | Entered Proximity Caves 10902 | -4/Proximity Caves | Accompanied by 2 allies 10908 | -4/Proximity Caves | Spotter reported a threat 10999 | -4/Proximity Caves | Build established: Scavenger-Tank 11068 | -4/Proximity Caves | Learned Research stockpile data 11270 | -4/Proximity Caves | Spotter reported a threat 11371 | -4/Proximity Caves | Spotter reported a threat 11514 | -4/Proximity Caves | Learned 4 Research zone layouts 11524 | -4/Proximity Caves | Entered Factory 11524 | -4/Factory | Accompanied by 2 allies 11524 | -4/Factory | Evolved 2 slots: Propulsion x1, Utility x1 11525 | -4/Factory | Identified exit to Research 11528 | -4/Factory | Loaded intel: 28 terminal locations 11563 | -4/Factory | Zion Heavy squad teleported in 11887 | -4/Factory | Spotted B-86 Titan 11914 | -4/Factory | Destroyed B-86 Titan 11976 | -4/Factory | Retrieved Zion intel report: Component Schematics 11977 | -4/Factory | Zion Heavy squad teleported in 11983 | -4/Factory | Discovered new exit (range 6) 11993 | -4/Factory | Entered Extension 11993 | -4/Extension | Accompanied by 5 allies 12072 | -4/Extension | Rescued a captive Derelict 12072 | -4/Extension | Rescued a captive Derelict 12110 | -4/Extension | Rescued a captive Derelict 12336 | -4/Extension | Rescued a captive Derelict 12396 | -4/Extension | Rescued a captive Derelict 12408 | -4/Extension | Zion Heavy squad teleported in 12493 | -4/Extension | First assault squad dispatched 12504 | -4/Extension | Build established: Commander-Tank 12509 | -4/Extension | Spotted B-86 Titan 12517 | -4/Extension | Spotted B-86 Titan 12528 | -4/Extension | Allies destroyed B-86 Titan 12532 | -4/Extension | Allies destroyed B-86 Titan 12554 | -4/Extension | Found Prototype Protection 12554 | -4/Extension | Identified Zio. Weapon Casing 12618 | -4/Extension | Disrupted transfer network 12639 | -4/Extension | Lost 13 allies 12646 | -4/Extension | Identified Exp. Target Analyzer 12772 | -4/Extension | Rescued A7 12905 | -4/Extension | Build established: Messiah-Gunner 12906 | -4/Extension | Rescued a captive Derelict 12913 | -4/Extension | Lost 3 allies 13019 | -4/Extension | Zion Heavy squad teleported in 13081 | -4/Extension | Lost 6 allies 13308 | -4/Extension | Lost 3 parts (2u1w) 13313 | -4/Extension | Discovered exit to Research (range 10) 13314 | -4/Extension | Lost 6 allies 13315 | -4/Extension | Discovered new exit (range 6) 13333 | -4/Extension | Found Quantum Capacitor 13387 | -4/Extension | Disrupted transfer network 13387 | -4/Extension | Entered Cetus 13407 | -4/Cetus | Spotted Cetus Guard 13407 | -4/Cetus | Spotted Cetus Guard 13410 | -4/Cetus | Spotted Cetus Guard 13412 | -4/Cetus | Destroyed Cetus Guard 13413 | -4/Cetus | Spotted Cetus Guard 13419 | -4/Cetus | Destroyed Cetus Guard 13422 | -4/Cetus | Destroyed Cetus Guard 13425 | -4/Cetus | Destroyed Cetus Guard 13552 | -4/Cetus | Cetus Manufacturing Module disabled 13592 | -4/Cetus | Lost 3 parts (3w) 13707 | -4/Cetus | Discovered new exit (range 15) 13790 | -4/Cetus | Spotted Cetus Guard 13790 | -4/Cetus | Spotted Cetus Guard 13797 | -4/Cetus | Spotted Cetus Guard 13797 | -4/Cetus | Spotted Cetus Guard 13805 | -4/Cetus | Destroyed Cetus Guard 13809 | -4/Cetus | Destroyed Cetus Guard 13819 | -4/Cetus | Destroyed Cetus Guard 13826 | -4/Cetus | Destroyed Cetus Guard 13838 | -4/Cetus | Discovered exit to Research (range 15) 13850 | -4/Cetus | Scared off Revision 17 14018 | -4/Cetus | Entered Archives 14115 | -4/Archives | Discovered new exit (range 15) 14218 | -4/Archives | Build established: Scavenger-Tank 14425 | -4/Archives | Discovered new exit (range 15) 14449 | -4/Archives | Entered Hub_04(d) 14462 | -4/Hub_04(d) | Zion Trap Resupply teleported in 14469 | -4/Hub_04(d) | Discovered exit to Research (range 16) 14634 | -4/Hub_04(d) | Zion Heavy squad teleported in 14798 | -4/Hub_04(d) | Build established: Scavenger-Gunner 14864 | -4/Hub_04(d) | Network Hub disabled 14929 | -4/Hub_04(d) | Spotted Lightning 14931 | -4/Hub_04(d) | Spotted Lightning 14933 | -4/Hub_04(d) | Allies destroyed Lightning 14933 | -4/Hub_04(d) | Spotted Lightning 14945 | -4/Hub_04(d) | Allies destroyed Lightning 14950 | -4/Hub_04(d) | System corruption reached 10% 14952 | -4/Hub_04(d) | Destroyed Lightning 14957 | -4/Hub_04(d) | Found Prototype Device 14957 | -4/Hub_04(d) | Identified Exp. EM Disruption Field 14975 | -4/Hub_04(d) | Found Prototype Processor 14975 | -4/Hub_04(d) | Identified Exp. Targeting Computer 15189 | -4/Hub_04(d) | Entered Research 15189 | -3/Research | Evolved 2 slots: Utility x2 15190 | -3/Research | Identified exit to Research 15207 | -3/Research | Zion Recon squad teleported in 15363 | -3/Research | Discovered new exit (range 53) 15474 | -3/Research | Lost 3 parts (1p1n1w) 15508 | -3/Research | Destroyed 7 combat bots 15715 | -3/Research | First assault squad dispatched 15890 | -3/Research | Entered Armory 15891 | -3/Armory | Loaded intel: 10 terminal locations 15968 | -3/Armory | Zion Hacking Resupply teleported in 16151 | -3/Armory | Fabricated Imp. Weapon Cycler? 16154 | -3/Armory | Fabricated Biometal Heavy Treads? 16583 | -3/Armory | Found Gamma Bomb Array 16669 | -3/Armory | First assault squad dispatched 16751 | -3/Armory | Spotted B-86 Titan 16780 | -3/Armory | Destroyed B-86 Titan 16839 | -3/Armory | Lost 3 parts (1n1u1w) 16856 | -3/Armory | Retrieved Zion intel report: Component Schematics 16857 | -3/Armory | Zion Hacker squad teleported in 16857 | -3/Armory | Destroyed 9 combat bots 16972 | -3/Armory | Fabricated Adv. Heavy Treads (x1) 17139 | -3/Armory | Zion Light squad teleported in 17223 | -3/Armory | Lost 3 allies 17249 | -3/Armory | Lost 3 parts (1p1n1u) 17304 | -3/Armory | Fabricated Imp. Heavy Siege Treads (x1) 17327 | -3/Armory | System corruption reached 10% 17335 | -3/Armory | Core integrity fell below 50% 17389 | -3/Armory | Terminal network hard line cut 17389 | -3/Armory | Lost 14 parts (2p2n7u3w) 17444 | -3/Armory | System corruption reached 30% 17476 | -3/Armory | Identified Vortex Catalyst Activator 17478 | -3/Armory | Found Enh. Force Lance 17479 | -3/Armory | Found Enh. Force Lance 17483 | -3/Armory | High security lockdown imminent 17487 | -3/Armory | Core integrity fell below 20% 17512 | -3/Armory | Destroyed by S-43 Plague with Heavy Machine Gun Last Messages --------------- 17483_ ALERT: High security lockdown imminent, T-100. 17484_ Slammed into P-80 Master. 17484_ Destabilizing: Core damaged (-26). 17486_ Dropped Adv. Medium Treads. 17486_ Acquired Unknown Flight Unit. 17486_ Identified Cesium-ion Thruster. 17487_ Biometal Heavy Treads destroyed. 17489_ P-80 Master destroyed. 17490_ Acquired 48 matter. 17493_ Penetrated by Slug. 17497_ SUH N LBZ|F/ITUGIM,8O%UN/ 3YZO 17497_ E-15 Imp destroyed. 17499_ Acquired Cesium-ion Thruster. 17501_ Cesium-ion Thruster destroyed. 17503_ Biometal Heavy Treads destroyed. 17503_ Cesium-ion Thruster destroyed. 17507_ Imp. Core Shielding destroyed. 17508_ P-80 Master destroyed. 17511_ Acquired 5 matter. Map ----- +----------------------------------------------------+ | ?# " + # # ### | | ?# # #######+### ** ]* # | | ?######## ##????????# *[ =* + | | ???????# #????????# # | | ???????# #????????# / | | ???????# #????????# ####+ | | ???????## ##????????# #? | | ????????# #????????########### """ | | ????????# #????????# #???? | | ?????##?# #????????# #???? | | ?????? ?# #????????# #???? | | ?# """" # #????????# #???? | | ?# # #????????# #???? | | ?# + #????????# #???? | | ????""" # ########## #???? | | ????? # # # #???? | | ????###?# # "T" # #???? | | ????????# # # #???? | | ????????# # ! # #???? | | ????????# # # #???? | | ######### # """ # // // #???? | | # # # """ # / =// #???? | | #""" # # ""??# [%/! // #???? | | #""" # # ????#=!/]* #???? | | #""" # ##/#########+########??? | | # ;@[xxsYxs [=%!| +??? | | #""" ##%###%############+###??? | | #""" #!=! # #?????????????????? | | #""" # = sx #?????????????????? | | # # # #?????????????????? | | # ! # # #?????????????????? | | # # /![# ?????????????????? | | ######### /![# ????????????????? | | ????????# /[[# ###???????????????? | | ????????###### #?????????????????? | | ?????????????# #?????????????????? | | ?????????????? ??????????????????? | | ?????????????? ??????????????????? | | ?????????????? ??????????????????? | | ??????????????#??????????????????? | | ?????????????????????????????????? | | ?????????????????????????????????? | | ?????????????????????????????????? | | ?????????????????????????????????? | | ?????????????????????????????????? | | ?????????????????????????????????? | | ?????????????????????????????????? | | ?????????????????????????????????? | | ?????????????????????????????????? | | ?????????????????????????????????? | +----------------------------------------------------+ Best States ------------- Heat Dissipation 105 Coolant Potential 100 Energy Generation 55 Energy Capacity 600 Matter Stores 300 Matter Capacity 300 Sight Range 16 Robot Scan Range 14 Terrain Scan Range 24 Terrain Scan Density 110 Jamming Range 14 Cloak Strength 4 Base Temperature (-) 100 Armor Coverage 1200 Resistance: TH 50 Resistance: EM 75 Core Shielding 30 Power Shielding 33 Propulsion Shielding 33 Weapon Shielding 100 Point Defense Rating 80 Weapon Cycling 20 Evasion (%) 62 Targeting Accuracy 12 Target Analysis 10 Armor Integrity Analysis 30 Recoil Reduction 5 Particle Charging 25 Defensive Hacking 10 Authchip Count 2 Trap Extractor Capacity 8 Item Schematics ----------------- Enh. Autogun | -8/Materials | Scanalyzed Mak. Leg | -7/Zion | Archive Imp. Core Shielding | -7/Zion | Archive Drone Bay | -7/Zion | Archive Kinecellerator | -7/Zion | Archive Hvy. Plasma Cannon | -7/Zion | Archive Imp. EM Pulse Cannon | -7/Zion | Archive Imp. Remote Datajack | -7/Zion | Archive Disruptor Cannon | -7/Zion | Archive Adv. Assault Cannon | -7/Zion | Archive Mak. Axe | -7/Zion | Archive Microactuators | -7/Zion | Archive Energy Well | -7/Zion | Archive Launcher Guidance Computer | -7/Zion | Archive Enh. Nuclear Core | -6/Factory | Scanalyzed Fusion Reactor | -5/Factory | Z-intel Enh. Flexi-carbon Leg | -5/Factory | Z-intel Cld. Plasma Rifle | -5/Factory | Z-intel Imp. Heavy Laser | -5/Factory | Z-intel Cld. Pulse Rifle | -5/Factory | Z-intel Exp. Heat Sink | -5/Factory | Z-intel Force Rifle | -5/Factory | Z-intel Cld. Gravmag System | -5/Factory | Z-intel Kinetic Spear | -5/Factory | Z-intel Cld. Nuclear Pulse Thruster | -5/Factory | Z-intel Imp. KE Penetrator | -5/Factory | Z-intel Huge Storage Unit | -4/Factory | Z-intel Linear Gravjet | -4/Factory | Z-intel Power Amplifier | -4/Factory | Z-intel Focal Shield | -4/Factory | Z-intel Adv. Target Analyzer | -4/Factory | Z-intel Imp. Remote Shield | -4/Factory | Z-intel Myomer Leg | -4/Factory | Z-intel Point Defense System | -4/Factory | Z-intel Imp. Weapon Cycler | -4/Factory | Z-intel Recalibrator | -4/Factory | Z-intel Scythe | -4/Factory | Z-intel Lyr. Light Armor Plating | -4/Factory | Z-intel Imp. Fusion Compressor | -4/Factory | Z-intel Imp. Heavy Treads | -4/Factory | Z-intel Gyrokinetic Inverter | -4/Factory | Z-intel Adv. ECM Suite | -3/Armory | Z-intel Machine Analyzer | -3/Armory | Z-intel Railgun | -3/Armory | Z-intel Impulse Thruster Array | -3/Armory | Z-intel Imp. Transmission Jammer | -3/Armory | Z-intel Adv. Sensor Array | -3/Armory | Z-intel Hacking Suite | -3/Armory | Z-intel Arm. Medium Treads | -3/Armory | Z-intel Imp. Reaction Control System | -3/Armory | Z-intel Matter Filter | -3/Armory | Z-intel Imp. Heavy Siege Treads | -3/Armory | Z-intel Imp. Component Analysis Suite | -3/Armory | Z-intel Mic. Antimatter Reactor | -3/Armory | Z-intel Cloaking Device | -3/Armory | Z-intel Robot Schematics ------------------ G-47 Trooper | -7/Zion | Archive S-27 Virus | -7/Zion | Archive C-57 Dissector | -7/Zion | Archive Fabricated ------------ Imp. Weapon Cycler | x2 | -3/Armory | Authchip Biometal Heavy Treads | x1 | -3/Armory | Preloaded, Authchip Adv. Heavy Treads | x1 | -3/Armory | Preloaded Imp. Heavy Siege Treads | x1 | -3/Armory | Authchip Alien Tech Used ----------------- None Achievements -------------- None Challenges ------------ None Game ------ Seed SigixDrainedInterrupter Manual? 0 Play Time 04:11:32 Cumulative 670.7 hours Start 2024.03.27 @ 05:08:53 End 2024.03.28 @ 07:07:22 Sessions 6 Manual Loads 0 Difficulty Rogue Special Mode None Game No. 265 Rogue 237 Adventurer 3 Explorer 25 Win Type - Total 15 Types 10/2/1/1/0/1/0/0/0 Lore% 91 Gallery% 96 Achievement% 85 Wizard Run 0 Options --------- Layout 2 ASCII 0 Keyboard 0 Movement Numpad Keybinds 0 Fullscreen 2 Font 24/Smallcaps Map View 50x44 Zoom Use 0% Tactical HUD 1 Map Filters NONE Filters NONE Steam 1 RUN: 0c78c416-5ad8-4466-bf5d-0f87a871faa8